fUST/lending_fUST_20240717
["ID","MTS","AMOUNT","RATE_DAILY","PERIOD"]
[332425076,1721172656130,-500.0,0.00023287,2]
[332425077,1721172656139,-500.0,0.00023287,2]
[332425078,1721172656148,-500.0,0.00023287,2]
[332425079,1721172656157,-500.0,0.00023287,2]
[332425080,1721172656167,-500.0,0.00023287,2]
[332425081,1721172656177,-500.0,0.00023287,2]
[332425082,1721172656186,-500.0,0.00023287,2]
[332425083,1721172656197,-500.0,0.00023287,2]
[332425084,1721172656206,-621.75,0.00023287,2]
[332425085,1721172656215,-503.28180853,0.00023287,2]
[332425086,1721172656225,-500.0,0.00023287,2]
[332425087,1721172656234,-500.0,0.00023287,2]
[332425088,1721172656243,-500.0,0.00023287,2]
[332425089,1721172656253,-520.46627272,0.00023287,2]
[332425090,1721172656262,-500.0,0.00023287,2]
[332425091,1721172656273,-500.0,0.00023287,2]
[332425092,1721172656282,-500.0,0.00023287,2]
[332425093,1721172656293,-1514.61,0.00023287,2]
[332425094,1721172656303,-500.0,0.00023287,2]
[332425095,1721172656313,-500.0,0.00023287,2]
[332425096,1721172656322,-500.0,0.00023287,2]
[332425097,1721172656332,-500.0,0.00023287,2]
[332425098,1721172656341,-510.06740057,0.00023287,2]
[332425099,1721172656350,-500.0,0.00023287,2]
[332425100,1721172656359,-500.0,0.00023287,2]
[332425101,1721172656369,-500.0,0.00023287,4]
[332425102,1721172656378,-500.0,0.00023287,2]
[332425103,1721172656387,-500.0,0.00023287,2]
[332425104,1721172656396,-500.0,0.00023287,2]
[332425105,1721172656405,-500.0,0.00023287,2]
[332425106,1721172656414,-500.0,0.00023287,2]
[332425107,1721172656423,-500.0,0.00023287,2]
[332425108,1721172656432,-500.0,0.00023287,2]
[332425109,1721172656441,-1707.28,0.00023287,2]
[332425110,1721172656450,-185.36735414,0.00023287,2]
[332425111,1721172656461,-831.71,0.00023287,2]
[332425112,1721172656469,-500.0,0.00023287,2]
[332425113,1721172656478,-500.0,0.00023287,2]
[332425114,1721172656487,-551.68391119,0.00023287,2]
[332425115,1721172656496,-654.94,0.00023287,2]
[332425116,1721172656507,-500.0,0.00023287,2]
[332425117,1721172656518,-500.0,0.00023287,2]
[332425118,1721172656527,-500.0,0.00023287,2]
[332425119,1721172656540,-500.0,0.00023287,2]
[332425120,1721172656550,-500.0,0.00023287,2]
[332425121,1721172656559,-657.69,0.00023287,2]
[332425122,1721172656569,-500.0,0.00023287,2]
[332425123,1721172656578,-500.0,0.00023287,2]
[332425124,1721172656586,-500.0,0.00023287,2]
[332425125,1721172656596,-500.0,0.00023287,2]
[332425126,1721172656606,-1744.19,0.00023287,2]
[332425127,1721172656615,-721.74,0.00023287,2]
[332425128,1721172656626,-859.96,0.00023287,2]
[332425129,1721172656635,-500.0,0.00023287,2]
[332425130,1721172656644,-827.55,0.00023287,2]
[332425131,1721172656654,-312.90823756,0.00023287,2]
[332425132,1721172656665,-500.0,0.00023287,2]
[332425133,1721172656674,-500.0,0.00023287,2]
[332425134,1721172656683,-500.0,0.00023287,2]
[332425135,1721172656692,-500.0,0.00023287,2]
[332425136,1721172656700,-500.0,0.00023287,2]
[332425137,1721172656709,-500.0,0.00023287,2]
[332425138,1721172656718,-1368.95,0.00023287,2]
[332425139,1721172656727,-585.1068023,0.00023287,2]
[332425140,1721172656736,-500.0,0.00023287,2]
[332425141,1721172656746,-500.0,0.00023287,2]
[332425142,1721172656756,-500.0,0.00023287,2]
[332425143,1721172656766,-1450.48,0.00023287,2]
[332425144,1721172656777,-721.19,0.00023287,2]
[332425145,1721172656789,-500.0,0.00023287,2]
[332425146,1721172656799,-500.0,0.00023287,2]
[332425147,1721172656808,-500.0,0.00023287,2]
[332425148,1721172656818,-500.0,0.00023287,2]
[332425149,1721172656827,-500.0,0.00023287,2]
[332425150,1721172656838,-6538.01,0.00023287,2]
[332425151,1721172656847,-500.0,0.00023287,2]
[332425152,1721172656856,-500.0,0.00023287,2]
[332425153,1721172656866,-645.85,0.00023287,2]
[332425154,1721172656876,-500.0,0.00023287,2]
[332425155,1721172656886,-506.21,0.00023287,2]
[332425156,1721172656897,-500.0,0.00023287,2]
[332425157,1721172656908,-500.0,0.00023287,2]
[332425158,1721172656917,-579.54227471,0.00023287,2]
[332425159,1721172656927,-500.0,0.00023287,2]
[332425160,1721172656937,-560.11,0.00023287,2]
[332425161,1721172656948,-619.73,0.00023287,2]
[332425162,1721172656958,-500.0,0.00023287,2]
[332425163,1721172656967,-500.0,0.00023287,2]
[332425164,1721172656976,-663.53,0.00023287,2]
[332425165,1721172656985,-500.0,0.00023287,2]
[332425166,1721172656994,-1238.71,0.00023287,2]
[332425167,1721172657004,-500.0,0.00023287,2]
[332425168,1721172657013,-500.0,0.00023287,2]
[332425169,1721172657022,-500.0,0.00023287,2]
[332425170,1721172657034,-557.43295849,0.00023287,2]
[332425171,1721172657045,-17519.29,0.00023287,2]
[332425172,1721172657055,-920.09,0.00023287,2]
[332425173,1721172657064,-500.0,0.00023287,2]
[332425174,1721172657073,-500.0,0.00023287,2]
[332425175,1721172657083,-7887.54,0.00023287,2]
[332425176,1721172657094,-500.0,0.00023287,2]
[332425177,1721172657105,-500.0,0.00023287,2]
[332425178,1721172657114,-565.88,0.00023287,2]
[332425179,1721172657124,-500.0,0.00023287,2]
[332425180,1721172657133,-500.0,0.00023287,2]
[332425181,1721172657142,-500.0,0.00023287,2]
[332425182,1721172657151,-500.0,0.00023287,2]
[332425183,1721172657161,-670.91,0.00023287,2]
[332425184,1721172657170,-500.0,0.00023287,2]
[332425185,1721172657180,-500.0,0.00023287,2]
[332425186,1721172657189,-500.0,0.00023287,2]
[332425187,1721172657201,-317.76184342,0.00023287,2]
[332425188,1721172657213,-500.0,0.00023287,2]
[332425189,1721172657222,-1195.42,0.00023287,2]
[332425190,1721172657233,-973.37,0.00023287,2]
[332425191,1721172657243,-500.0,0.00023287,2]
[332425192,1721172657253,-311.32956133,0.00023287,2]
[332425193,1721172657263,-500.0,0.00023287,2]
[332425194,1721172657273,-500.0,0.00023287,2]
[332425195,1721172657284,-500.0,0.00023287,2]
[332425196,1721172657294,-500.0,0.00023287,2]
[332425197,1721172657304,-500.0,0.00023287,2]
[332425198,1721172657314,-151.0,0.00023301,2]
[332425199,1721172657325,-394.37458897,0.0002331,2]
[332425200,1721172657336,-153.69380405,0.00023358,2]
[332425201,1721172657347,-353.67153218,0.00023385,2]
[332425202,1721172657356,-4665.88576162,0.00023425,2]
[332425203,1721172657366,-166.666666,0.00023456,2]
[332425204,1721172657377,-4620.85005911,0.00023462,2]
[332425205,1721172657386,-153.69380405,0.00023472,2]
[332425206,1721172657396,-1038.75429191,0.00023484,2]
[332425207,1721172657406,-394.37458897,0.00023494,2]
[332425208,1721172657416,-1788.64877304,0.00023555,2]
[332425209,1721172657427,-154.04110748,0.0002356,2]
[332425210,1721172657437,-509.6415422,0.00023561,2]
[332425211,1721172657447,-500.0,0.00023561,2]
[332425212,1721172657456,-500.0,0.00023561,2]
[332425213,1721172657466,-441.71265252,0.00023561,2]
[332425214,1721172657475,-500.0,0.00023561,2]
[332425215,1721172657484,-1500.0,0.00023561,2]
[332425216,1721172657495,-878.77,0.00023561,2]
[332425217,1721172657504,-500.0,0.00023561,2]
[332425218,1721172657515,-622.94870663,0.00023561,2]
[332425219,1721172657525,-500.0,0.00023561,2]
[332425220,1721172657535,-500.0,0.00023561,2]
[332425221,1721172657544,-1503.62,0.00023561,2]
[332425222,1721172657553,-500.0,0.00023561,2]
[332425223,1721172657563,-500.0,0.00023561,2]
[332425224,1721172657573,-200.0,0.00023561,2]
[332425225,1721172657582,-751.45,0.00023561,2]
[332425226,1721172657591,-500.0,0.00023561,2]
[332425227,1721172657600,-631.39,0.00023561,2]
[332425228,1721172657609,-500.0,0.00023561,2]
[332425229,1721172657619,-500.0,0.00023561,2]
[332425230,1721172657628,-254.92783745,0.00023561,2]
[332425231,1721172657637,-500.0,0.00023561,2]
[332425232,1721172657646,-500.0,0.00023561,2]
[332425233,1721172657655,-500.0,0.00023561,2]
[332425234,1721172657665,-500.0,0.00023561,2]
[332425235,1721172657674,-500.0,0.00023561,2]
[332425236,1721172657683,-500.0,0.00023561,2]
[332425237,1721172657693,-1329.17,0.00023561,2]
[332425238,1721172657702,-575.36970071,0.00023561,2]
[332425239,1721172657711,-578.836978,0.00023561,2]
[332425240,1721172657720,-500.0,0.00023561,2]
[332425241,1721172657729,-500.0,0.00023561,2]
[332425242,1721172657738,-500.0,0.00023561,2]
[332425243,1721172657751,-500.0,0.00023561,2]
[332425244,1721172657764,-500.0,0.00023561,2]
[332425245,1721172657774,-529.70473571,0.00023561,2]
[332425246,1721172657786,-500.0,0.00023561,2]
[332425247,1721172657795,-500.0,0.00023561,2]
[332425248,1721172657805,-500.0,0.00023561,2]
[332425249,1721172657815,-500.0,0.00023561,2]
[332425250,1721172657826,-500.0,0.00023561,2]
[332425251,1721172657838,-500.0,0.00023561,2]
[332425252,1721172657848,-279.70913452,0.00023561,2]
[332425253,1721172657858,-500.0,0.00023561,2]
[332425254,1721172657867,-500.0,0.00023561,2]
[332425255,1721172657876,-500.0,0.00023561,2]
[332425256,1721172657885,-500.0,0.00023561,2]
[332425257,1721172657894,-500.0,0.00023561,2]
[332425258,1721172657903,-621.75,0.00023561,2]
[332425259,1721172657912,-500.0,0.00023561,2]
[332425260,1721172657921,-500.0,0.00023561,2]
[332425261,1721172657932,-500.0,0.00023561,2]
[332425262,1721172657941,-500.0,0.00023561,2]
[332425263,1721172657952,-500.0,0.00023561,2]
[332425264,1721172657961,-500.0,0.00023561,2]
[332425265,1721172657970,-1514.61,0.00023561,2]
[332425266,1721172657980,-500.0,0.00023561,2]
[332425267,1721172657989,-500.0,0.00023561,2]
[332425268,1721172657999,-500.0,0.00023561,2]
[332425269,1721172658009,-500.0,0.00023561,2]
[332425270,1721172658019,-500.0,0.00023561,2]
[332425271,1721172658031,-500.0,0.00023561,2]
[332425272,1721172658043,-500.0,0.00023561,4]
[332425273,1721172658052,-500.0,0.00023561,2]
[332425274,1721172658061,-500.0,0.00023561,2]
[332425275,1721172658070,-500.0,0.00023561,2]
[332425276,1721172658079,-500.0,0.00023561,2]
[332425277,1721172658089,-500.0,0.00023561,2]
[332425278,1721172658099,-500.0,0.00023561,2]
[332425279,1721172658108,-500.0,0.00023561,2]
[332425280,1721172658119,-1707.28,0.00023561,2]
[332425281,1721172658130,-831.71,0.00023561,2]
[332425282,1721172658139,-500.0,0.00023561,2]
[332425283,1721172658149,-500.0,0.00023561,2]
[332425284,1721172658159,-654.94,0.00023561,2]
[332425285,1721172658169,-246.69611971,0.00023561,2]
[332425286,1721172658179,-500.0,0.00023561,2]
[332425287,1721172658188,-500.0,0.00023561,2]
[332425288,1721172658198,-500.0,0.00023561,2]
[332425289,1721172658208,-500.0,0.00023561,2]
[332425290,1721172658218,-657.69,0.00023561,2]
[332425291,1721172658227,-500.0,0.00023561,2]
[332425292,1721172658237,-500.0,0.00023561,2]
[332425293,1721172658247,-500.0,0.00023561,2]
[332425294,1721172658257,-1744.19,0.00023561,2]
[332425295,1721172658267,-721.74,0.00023561,2]
[332425296,1721172658277,-500.0,0.00023561,2]
[332425297,1721172658289,-859.96,0.00023561,2]
[332425298,1721172658298,-500.0,0.00023561,2]
[332425299,1721172658308,-827.55,0.00023561,2]
[332425300,1721172658317,-500.0,0.00023561,2]
[332425301,1721172658327,-500.0,0.00023561,2]
[332425302,1721172658336,-500.0,0.00023561,2]
[332425303,1721172658345,-500.0,0.00023561,2]
[332425304,1721172658355,-500.0,0.00023561,2]
[332425305,1721172658365,-500.0,0.00023561,2]
[332425306,1721172658374,-1368.95,0.00023561,2]
[332425307,1721172658383,-500.0,0.00023561,2]
[332425308,1721172658393,-500.0,0.00023561,2]
[332425309,1721172658402,-500.0,0.00023561,2]
[332425310,1721172658411,-1450.48,0.00023561,2]
[332425311,1721172658421,-721.19,0.00023561,2]
[332425312,1721172658431,-500.0,0.00023561,2]
[332425313,1721172658440,-500.0,0.00023561,2]
[332425314,1721172658450,-500.0,0.00023561,2]
[332425315,1721172658459,-500.0,0.00023561,2]
[332425316,1721172658468,-500.0,0.00023561,2]
[332425317,1721172658478,-6538.01,0.00023561,2]
[332425318,1721172658488,-500.0,0.00023561,2]
[332425319,1721172658498,-500.0,0.00023561,2]
[332425320,1721172658508,-645.85,0.00023561,2]
[332425321,1721172658518,-500.0,0.00023561,2]
[332425322,1721172658527,-506.21,0.00023561,2]
[332425323,1721172658540,-500.0,0.00023561,2]
[332425324,1721172658550,-500.0,0.00023561,2]
[332425325,1721172658560,-560.11,0.00023561,2]
[332425326,1721172658570,-619.73,0.00023561,2]
[332425327,1721172658579,-500.0,0.00023561,2]
[332425328,1721172658590,-500.0,0.00023561,2]
[332425329,1721172658598,-663.53,0.00023561,2]
[332425330,1721172658609,-500.0,0.00023561,2]
[332425331,1721172658619,-1238.71,0.00023561,2]
[332425332,1721172658629,-500.0,0.00023561,2]
[332425333,1721172658641,-500.0,0.00023561,2]
[332425334,1721172658651,-500.0,0.00023561,2]
[332425335,1721172658661,-17519.29,0.00023561,2]
[332425336,1721172658671,-920.09,0.00023561,2]
[332425337,1721172658680,-500.0,0.00023561,2]
[332425338,1721172658691,-386.65129206,0.00023561,2]
[332425339,1721172658700,-7887.54,0.00023561,2]
[332425340,1721172658709,-500.0,0.00023561,2]
[332425341,1721172658719,-500.0,0.00023561,2]
[332425342,1721172658728,-565.88,0.00023561,2]
[332425343,1721172658739,-500.0,0.00023561,2]
[332425344,1721172658753,-500.0,0.00023561,2]
[332425345,1721172658762,-500.0,0.00023561,2]
[332425346,1721172658774,-500.0,0.00023561,2]
[332425347,1721172658786,-670.91,0.00023561,2]
[332425348,1721172658796,-500.0,0.00023561,2]
[332425349,1721172658929,-500.0,0.00023561,2]
[332425350,1721172658941,-500.0,0.00023561,2]
[332425351,1721172658953,-500.0,0.00023561,2]
[332425352,1721172658963,-1195.42,0.00023561,2]
[332425353,1721172658972,-973.37,0.00023561,2]
[332425354,1721172658982,-500.0,0.00023561,2]
[332425355,1721172658992,-500.0,0.00023561,2]
[332425356,1721172659003,-500.0,0.00023561,2]
[332425357,1721172659014,-377.84464422,0.00023561,2]
[332425358,1721172659023,-500.0,0.00023561,2]
[332425359,1721172659035,-500.0,0.00023561,2]
[332425360,1721172659044,-353.67153218,0.00023578,2]
[332425361,1721172659053,-1038.75429191,0.00023582,2]
[332425362,1721172659063,-4620.85005911,0.00023608,2]
[332425363,1721172659073,-4665.88576162,0.00023643,2]
[332425364,1721172659082,-178.86187546,0.00023652,2]
[332425365,1721172659091,-200.0,0.00023652,2]
[332425366,1721172659101,-2000.0,0.00023655,2]
[332425367,1721172659110,-2000.0,0.00023664,2]
[332425368,1721172659119,-2000.0,0.00023673,2]
[332425369,1721172659129,-4665.88576162,0.00023676,2]
[332425370,1721172659138,-2000.0,0.00023682,2]
[332425371,1721172659147,-167.36296647,0.00023682,2]
[332425372,1721172659157,-1038.75429191,0.00023705,2]
[332425373,1721172659166,-4665.88576162,0.00023719,2]
[332425374,1721172659176,-1038.75429191,0.00023735,2]
[332425375,1721172659186,-151.0,0.00023741,2]
[332425376,1721172659196,-1038.75429191,0.00023757,2]
[332425377,1721172659206,-1152.0,0.00023781,2]
[332425378,1721172659216,-1038.75429191,0.00023798,2]
[332425379,1721172659226,-394.37458897,0.00023807,2]
[332425380,1721172659237,-288.59819013,0.00023813,2]
[332425381,1721172659246,-4665.88576162,0.00023831,2]
[332425382,1721172659256,-500.0,0.00023835,2]
[332425383,1721172659266,-500.0,0.00023835,2]
[332425384,1721172659275,-637.96458271,0.00023835,2]
[332425385,1721172659286,-1500.0,0.00023835,2]
[332425386,1721172659295,-878.77,0.00023835,2]
[332425387,1721172659304,-185.33483968,0.00023835,2]
[332425388,1721172659313,-500.0,0.00023835,2]
[332425389,1721172659322,-500.0,0.00023835,2]
[332425390,1721172659331,-1503.62,0.00023835,2]
[332425391,1721172659341,-500.0,0.00023835,2]
[332425392,1721172659350,-500.0,0.00023835,2]
[332425393,1721172659360,-200.0,0.00023835,2]
[332425394,1721172659370,-751.45,0.00023835,2]
[332425395,1721172659380,-500.0,0.00023835,2]
[332425396,1721172659390,-631.39,0.00023835,2]
[332425397,1721172659399,-500.0,0.00023835,2]
[332425398,1721172659409,-500.0,0.00023835,2]
[332425399,1721172659418,-500.0,0.00023835,2]
[332425400,1721172659428,-500.0,0.00023835,2]
[332425401,1721172659438,-225.02564026,0.00023835,2]
[332425402,1721172659448,-500.0,0.00023835,2]
[332425403,1721172659458,-500.0,0.00023835,2]
[332425404,1721172659468,-500.0,0.00023835,2]
[332425405,1721172659477,-1329.17,0.00023835,2]
[332425406,1721172659488,-500.0,0.00023835,2]
[332425407,1721172659497,-500.0,0.00023835,2]
[332425408,1721172659507,-500.0,0.00023835,2]
[332425409,1721172659516,-500.0,0.00023835,2]
[332425410,1721172659526,-500.0,0.00023835,2]
[332425411,1721172659537,-77.4497597,0.00023835,2]
[332425412,1721172659879,-197.54512246,0.00019165,2]
[332425413,1721172659889,-500.0,0.00021917,2]
[332425414,1721172659898,-500.0,0.00021917,2]
[332425415,1721172659908,-500.0,0.00022191,2]
[332425416,1721172659919,-500.0,0.00022191,2]
[332425417,1721172659929,-500.0,0.00022465,2]
[332425418,1721172659938,-500.0,0.00022739,2]
[332425419,1721172659948,-191.36840556,0.00022941,2]
[332425420,1721172659958,-500.0,0.00023013,2]
[332425421,1721172659968,-500.0,0.00023013,2]
[332425422,1721172659977,-500.0,0.00023287,2]
[332425423,1721172659987,-500.0,0.00023287,2]
[332425424,1721172659996,-500.0,0.00023561,2]
[332425425,1721172660005,-500.0,0.00023561,2]
[332425426,1721172660016,-422.5502403,0.00023835,2]
[332425427,1721172660025,-500.0,0.00023835,2]
[332425428,1721172660038,-500.0,0.00023835,2]
[332425429,1721172660048,-500.0,0.00023835,2]
[332425430,1721172660058,-500.0,0.00023835,2]
[332425431,1721172660068,-347.01898202,0.00023835,2]
[332425432,1721172660077,-500.0,0.00023835,2]
[332425433,1721172660087,-500.0,0.00023835,2]
[332425434,1721172660096,-500.0,0.00023835,2]
[332425435,1721172660106,-430.47100395,0.00023835,2]
[332425436,1721172660115,-500.0,0.00023835,2]
[332425437,1721172660125,-359.86558223,0.00023835,2]
[332425438,1721172660272,-261.88441777,0.00023835,2]
[332425439,1721172660282,-353.41558223,0.00023835,2]
[332425440,1721172660305,-500.0,0.00022191,2]
[332425441,1721172660314,-146.58441777,0.00023835,2]
[332425442,1721172660323,-500.0,0.00023835,2]
[332425443,1721172660333,-500.0,0.00023835,2]
[332425444,1721172660343,-500.0,0.00023835,2]
[332425445,1721172660353,-500.0,0.00023835,2]
[332425446,1721172660363,-500.0,0.00023835,2]
[332425447,1721172660372,-1514.61,0.00023835,2]
[332425448,1721172660382,-500.0,0.00023835,2]
[332425449,1721172660391,-500.0,0.00023835,2]
[332425450,1721172660401,-500.0,0.00023835,2]
[332425451,1721172660411,-500.0,0.00023835,2]
[332425452,1721172660420,-500.0,0.00023835,2]
[332425453,1721172660429,-500.0,0.00023835,2]
[332425454,1721172660439,-500.0,0.00023835,4]
[332425455,1721172660449,-500.0,0.00023835,2]
[332425456,1721172660460,-622.47699389,0.00023835,2]
[332425457,1721172660469,-163.20550728,0.00023835,2]
[332425458,1721172660661,-835.6949805,0.00019817,2]
[332425459,1721172660673,-306.78333143,0.00019817,2]
[332425460,1721172660682,-326.0503484,0.00023835,2]
[332425461,1721172660691,-500.0,0.00023835,2]
[332425462,1721172660700,-500.0,0.00023835,2]
[332425463,1721172660709,-224.74185223,0.00023835,2]
[332425466,1721172750457,150.5,0.0002383,62]
[332425467,1721172750969,150.5,0.0002382,62]
[332425468,1721172751426,150.5,0.0002381,62]
[332425472,1721172827876,150.409999,0.00023,60]
[332425473,1721172840002,154.71377951,0.00014999,2]
[332425475,1721172871648,226.5,0.0002098,62]
[332425476,1721172873251,243.23664462,0.00014999,2]
[332425477,1721172877799,258.9447996,0.00014999,2]
[332425478,1721172911718,730.24416428,0.00015,2]
[332425479,1721172919503,936.58820944,0.00014999,2]
[332425489,1721173016500,155.13616251,0.00014999,2]
[332425493,1721173360442,3000.0,0.00015396,2]
[332425494,1721173456219,24900.0,0.00015393,2]
[332425496,1721173547209,201.24921322,0.0001888,3]
[332425498,1721173571853,409.2938986,0.00015247,2]
[332425548,1721173832068,-714.60729501,0.00016154,2]
[332425550,1721173832081,-79.75840207,0.00016244,2]
[332425632,1721173838083,-220.24159793,0.00016244,2]
[332425634,1721173838095,-500.0,0.00016244,2]
[332425636,1721173838105,-168.95927172,0.00016244,2]
[332425637,1721173838115,-500.0,0.00016244,2]
[332425638,1721173838128,-500.0,0.00016244,2]
[332425639,1721173838140,-127791.366468,0.00016245,2]
[332425640,1721173838151,-57301.65224317,0.00016254,2]
[332425641,1721173838165,-586.88755318,0.00016254,2]
[332425642,1721173838176,-500.0,0.00016254,2]
[332425643,1721173838187,-286.17451992,0.00016254,2]
[332425644,1721173838198,-225.17346025,0.00016254,2]
[332425645,1721173838208,-204.81412648,0.00016254,2]
[332425646,1721173838219,-500.0,0.00016254,2]
[332425647,1721173838230,-339.96815795,0.00016254,2]
[332425648,1721173838240,-500.0,0.00016254,2]
[332425649,1721173838250,-216.85479467,0.00016254,2]
[332425650,1721173838259,-500.0,0.00016254,2]
[332425651,1721173838269,-500.0,0.00016254,2]
[332425653,1721173838279,-500.0,0.00016254,2]
[332425654,1721173838289,-500.0,0.00016254,2]
[332425655,1721173838301,-500.0,0.00016254,2]
[332425656,1721173838312,-500.0,0.00016254,2]
[332425657,1721173838323,-500.0,0.00016254,2]
[332425658,1721173838334,-500.0,0.00016254,2]
[332425659,1721173838344,-500.0,0.00016254,2]
[332425660,1721173838354,-500.0,0.00016254,2]
[332425661,1721173838364,-500.0,0.00016254,2]
[332425662,1721173838376,-500.0,0.00016254,2]
[332425663,1721173838387,-500.0,0.00016254,2]
[332425664,1721173838398,-344.28813079,0.00016254,2]
[332425665,1721173838408,-500.0,0.00016254,2]
[332425666,1721173838419,-500.0,0.00016254,2]
[332425667,1721173838430,-500.0,0.00016254,2]
[332425668,1721173838441,-341.00169155,0.00016254,2]
[332425669,1721173838451,-500.0,0.00016254,2]
[332425670,1721173838462,-34978.9335217,0.00016255,2]
[332425671,1721173838475,-17276.36712772,0.00016255,2]
[332425672,1721173838486,-42291.50925035,0.00016255,2]
[332425673,1721173838496,-21272.31914634,0.00016255,2]
[332425674,1721173838506,-276.97473649,0.00016806,2]
[332425675,1721173838517,-420.0,0.00017868,2]
[332425676,1721173838528,-127791.366468,0.0001799,2]
[332425677,1721173838537,-97429.03698366,0.00018,2]
[332425678,1721173838559,-191.36840556,0.00018798,2]
[332425679,1721173838573,-714.60729494,0.00018832,2]
[332425680,1721173838585,-197.54512246,0.00019039,2]
[332425681,1721173838597,-814.58515643,0.00019039,3]
[332425682,1721173838608,-250.0,0.00019041,2]
[332425683,1721173838620,-587.0,0.00019655,2]
[332425684,1721173838632,-428.86667829,0.0002,2]
[332425685,1721173838643,-1066.9082796,0.0002,2]
[332425686,1721173838656,-172.27939503,0.0002,2]
[332425687,1721173838667,-63895.6832339,0.0002099,3]
[332425688,1721173838678,-6383.95911594,0.00021,2]
[332425689,1721173838690,-150.112233,0.00021,4]
[332425690,1721173838702,-513.292012,0.00021096,2]
[332425691,1721173838714,-1692.8212346,0.00021461,2]
[332425692,1721173838727,-714.60729494,0.0002151,2]
[332425693,1721173838738,-823.0,0.00021621,2]
[332425694,1721173838750,-500.0,0.00021917,2]
[332425695,1721173838761,-500.0,0.00021917,2]
[332425696,1721173838772,-500.0,0.00021917,2]
[332425698,1721173838784,-500.0,0.00021917,2]
[332425700,1721173838794,-500.0,0.00021917,2]
[332425702,1721173838806,-500.0,0.00021917,2]
[332425704,1721173838817,-500.0,0.00021917,2]
[332425706,1721173838827,-500.0,0.00021917,2]
[332425707,1721173838839,-500.0,0.00021917,2]
[332425708,1721173838851,-500.0,0.00021917,2]
[332425709,1721173838861,-500.0,0.00021917,2]
[332425710,1721173838872,-500.0,0.00021917,2]
[332425711,1721173838883,-500.0,0.00021917,2]
[332425712,1721173838895,-500.0,0.00021917,2]
[332425713,1721173838905,-500.0,0.00021917,2]
[332425714,1721173838916,-739.13,0.00021917,2]
[332425715,1721173838928,-500.0,0.00021917,2]
[332425716,1721173838941,-500.0,0.00021917,2]
[332425717,1721173838951,-500.0,0.00021917,2]
[332425718,1721173838962,-500.0,0.00021917,2]
[332425719,1721173838973,-500.0,0.00021917,2]
[332425720,1721173838984,-500.0,0.00021917,2]
[332425721,1721173838995,-500.0,0.00021917,2]
[332425722,1721173839005,-500.0,0.00021917,2]
[332425723,1721173839016,-500.0,0.00021917,2]
[332425724,1721173839027,-500.0,0.00021917,2]
[332425725,1721173839039,-500.0,0.00021917,2]
[332425726,1721173839051,-500.0,0.00021917,2]
[332425727,1721173839061,-500.0,0.00021917,2]
[332425728,1721173839073,-500.0,0.00021917,2]
[332425729,1721173839084,-500.0,0.00021917,2]
[332425730,1721173839094,-500.0,0.00021917,2]
[332425731,1721173839105,-17.77270313,0.00021917,2]
[332425736,1721173840277,-482.22729687,0.00021917,2]
[332425737,1721173840288,-1445.63,0.00021917,2]
[332425738,1721173840299,-500.0,0.00021917,2]